[Event "Late-Titled-Tuesday-Blitz-October-03-2023"]
[Site "Chess.com"]
[Date "2023.10.03"]
[Round "1"]
[White "GoltsevDmitry2000"]
[Black "cukus"]
[Result "1-0"]
[WhiteElo "2680"]
[BlackElo "2370"]
[TimeControl "180+1"]
[EndTime "14:08:14 PDT"]
[Termination "GoltsevDmitry2000 won by resignation"]

1. e4 {[%clk 0:02:57.8]} 1... e6 {[%clk 0:02:57.3]} 2. d4 {[%clk 0:02:57]} 2...
d5 {[%clk 0:02:57.2]} 3. exd5 {[%clk 0:02:57.9]} 3... exd5 {[%clk 0:02:57]} 4.
Nf3 {[%clk 0:02:58.8]} 4... Bd6 {[%clk 0:02:55.1]} 5. c4 {[%clk 0:02:59.7]} 5...
Nf6 {[%clk 0:02:48.7]} 6. Nc3 {[%clk 0:02:58.4]} 6... O-O {[%clk 0:02:48.3]} 7.
Be2 {[%clk 0:02:57.7]} 7... dxc4 {[%clk 0:02:47]} 8. Bxc4 {[%clk 0:02:58.6]}
8... Re8+ {[%clk 0:02:45.3]} 9. Be3 {[%clk 0:02:58.3]} 9... Nbd7 {[%clk
0:02:43.3]} 10. O-O {[%clk 0:02:52.2]} 10... Nb6 {[%clk 0:02:42.7]} 11. Bb3
{[%clk 0:02:52.9]} 11... c6 {[%clk 0:02:42]} 12. Bg5 {[%clk 0:02:47.2]} 12...
Bg4 {[%clk 0:02:35]} 13. Qd3 {[%clk 0:02:45.3]} 13... Bh5 {[%clk 0:02:28.4]} 14.
Nh4 {[%clk 0:02:11.4]} 14... Bxh2+ {[%clk 0:02:13.5]} 15. Kh1 {[%clk 0:02:11.6]}
15... Bc7 {[%clk 0:02:11.4]} 16. Rae1 {[%clk 0:02:04]} 16... Qd6 {[%clk
0:02:01.5]} 17. g3 {[%clk 0:01:57.7]} 17... Bg6 {[%clk 0:01:37.8]} 18. Nxg6
{[%clk 0:01:57.6]} 18... hxg6 {[%clk 0:01:37.2]} 19. Qxg6 {[%clk 0:01:57.5]}
19... Nfd5 {[%clk 0:01:28.4]} 20. Qxd6 {[%clk 0:01:55.1]} 20... Bxd6 {[%clk
0:01:28.1]} 21. Ne4 {[%clk 0:01:54.7]} 21... Bb4 {[%clk 0:01:25.4]} 22. Re2
{[%clk 0:01:33.3]} 22... Re6 {[%clk 0:01:14.1]} 23. Nc3 {[%clk 0:01:13.1]} 23...
Rae8 {[%clk 0:01:07.3]} 24. Rxe6 {[%clk 0:01:04.1]} 24... Rxe6 {[%clk
0:01:06.9]} 25. Kg2 {[%clk 0:01:02.8]} 25... g6 {[%clk 0:00:48.9]} 26. Kf3
{[%clk 0:00:50.1]} 26... Kg7 {[%clk 0:00:47.5]} 27. Ne4 {[%clk 0:00:46.2]} 27...
f5 {[%clk 0:00:40.9]} 28. Nc5 {[%clk 0:00:30.6]} 28... Bxc5 {[%clk 0:00:40.5]}
29. dxc5 {[%clk 0:00:31.5]} 29... Re4 {[%clk 0:00:40.2]} 30. cxb6 {[%clk
0:00:29.4]} 30... axb6 {[%clk 0:00:40]} 31. Bxd5 {[%clk 0:00:22.8]} 31... cxd5
{[%clk 0:00:39.9]} 32. Rd1 {[%clk 0:00:23]} 32... d4 {[%clk 0:00:36.6]} 33. Bf4
{[%clk 0:00:21.7]} 33... Kf6 {[%clk 0:00:34.4]} 34. Bc7 {[%clk 0:00:20.6]} 34...
b5 {[%clk 0:00:30.8]} 35. Bb6 {[%clk 0:00:20.4]} 35... Ke5 {[%clk 0:00:30.7]}
36. Ba5 {[%clk 0:00:18.4]} 36... Kd5 {[%clk 0:00:24.8]} 37. Re1 {[%clk
0:00:14.9]} 37... g5 {[%clk 0:00:20.6]} 38. Rxe4 {[%clk 0:00:14.1]} 38... fxe4+
{[%clk 0:00:20.7]} 39. Ke2 {[%clk 0:00:05.9]} 39... g4 {[%clk 0:00:20.7]} 40. b3
{[%clk 0:00:05]} 40... Kc5 {[%clk 0:00:20.8]} 41. Bd2 {[%clk 0:00:05.2]} 41...
Kd5 {[%clk 0:00:18.7]} 42. Bh6 {[%clk 0:00:04.4]} 42... Kc5 {[%clk 0:00:18]} 43.
Kd2 {[%clk 0:00:05.1]} 43... Kd5 {[%clk 0:00:17]} 44. Bf8 {[%clk 0:00:05.6]}
44... Ke5 {[%clk 0:00:16]} 45. Bg7+ {[%clk 0:00:05.9]} 45... Kd5 {[%clk
0:00:16.2]} 46. Bf6 {[%clk 0:00:05.5]} 46... Kc5 {[%clk 0:00:16.3]} 47. Be7+
{[%clk 0:00:04.9]} 47... Kd5 {[%clk 0:00:16.4]} 48. Ba3 {[%clk 0:00:05.1]} 48...
Ke5 {[%clk 0:00:16.2]} 49. Bb4 {[%clk 0:00:04.6]} 49... Kd5 {[%clk 0:00:16.4]}
50. a4 {[%clk 0:00:04.5]} 50... bxa4 {[%clk 0:00:15.8]} 51. bxa4 {[%clk
0:00:05.4]} 51... Kc4 {[%clk 0:00:16.4]} 52. Bf8 {[%clk 0:00:05.8]} 52... Kb3
{[%clk 0:00:15.3]} 53. a5 {[%clk 0:00:06.3]} 53... Ka4 {[%clk 0:00:15.3]} 54.
Bg7 {[%clk 0:00:06.7]} 54... e3+ {[%clk 0:00:10.7]} 55. fxe3 {[%clk 0:00:06.4]}
55... dxe3+ {[%clk 0:00:11.3]} 56. Kxe3 {[%clk 0:00:07.3]} 56... Kxa5 {[%clk
0:00:11.8]} 57. Kf4 {[%clk 0:00:08]} 57... Kb5 {[%clk 0:00:11]} 58. Kxg4 {[%clk
0:00:08.6]} 58... Kc4 {[%clk 0:00:11.9]} 59. Kf5 {[%clk 0:00:09]} 59... Kd5
{[%clk 0:00:12.5]} 60. g4 {[%clk 0:00:09.5]} 60... b5 {[%clk 0:00:13.3]} 61. g5
{[%clk 0:00:10]} 61... Kd6 {[%clk 0:00:13.7]} 62. Kg6 {[%clk 0:00:10.6]} 62...
Ke7 {[%clk 0:00:13.4]} 63. Kh7 {[%clk 0:00:10.9]} 63... Kf7 {[%clk 0:00:14.2]}
64. g6+ {[%clk 0:00:11.2]} 64... Ke6 {[%clk 0:00:14.8]} 65. Bb2 {[%clk
0:00:12.1]} 1-0

[Event "Late-Titled-Tuesday-Blitz-October-03-2023"]
[Site "Chess.com"]
[Date "2023.10.03"]
[Round "1"]
[White "Sacbutt"]
[Black "zajka-molotok"]
[Result "0-1"]
[WhiteElo "2249"]
[BlackElo "2578"]
[TimeControl "180+1"]
[EndTime "14:08:14 PDT"]
[Termination "zajka-molotok won by checkmate"]

1. d4 {[%clk 0:03:00.9]} 1... d5 {[%clk 0:02:56.9]} 2. c4 {[%clk 0:03:00.4]}
2... c6 {[%clk 0:02:56.8]} 3. Nf3 {[%clk 0:02:59.9]} 3... Nf6 {[%clk 0:02:56.6]}
4. Nc3 {[%clk 0:02:59.9]} 4... dxc4 {[%clk 0:02:55.4]} 5. a4 {[%clk 0:02:59.4]}
5... Bf5 {[%clk 0:02:55.5]} 6. e3 {[%clk 0:02:58.8]} 6... e6 {[%clk 0:02:55.1]}
7. Bxc4 {[%clk 0:02:59.4]} 7... Bb4 {[%clk 0:02:55.5]} 8. O-O {[%clk 0:02:59.8]}
8... O-O {[%clk 0:02:53.6]} 9. Qe2 {[%clk 0:02:55.8]} 9... Nbd7 {[%clk 0:02:53]}
10. Nh4 {[%clk 0:02:49.2]} 10... Bg4 {[%clk 0:02:45.9]} 11. f3 {[%clk 0:02:47]}
11... Bh5 {[%clk 0:02:46.4]} 12. g3 {[%clk 0:02:41.5]} 12... e5 {[%clk
0:02:35.4]} 13. d5 {[%clk 0:02:24.7]} 13... Bxc3 {[%clk 0:02:26.3]} 14. bxc3
{[%clk 0:02:22.4]} 14... cxd5 {[%clk 0:02:24.8]} 15. Ba2 {[%clk 0:02:13.5]}
15... Rc8 {[%clk 0:02:23.6]} 16. Ba3 {[%clk 0:02:12.2]} 16... Re8 {[%clk
0:02:20.7]} 17. Rac1 {[%clk 0:02:11.9]} 17... Nb6 {[%clk 0:02:15.9]} 18. g4
{[%clk 0:02:01.9]} 18... Bg6 {[%clk 0:02:09.6]} 19. Nxg6 {[%clk 0:02:01.3]}
19... hxg6 {[%clk 0:02:07.8]} 20. a5 {[%clk 0:01:49.5]} 20... Nc4 {[%clk
0:02:06.4]} 21. Bb4 {[%clk 0:01:49.6]} 21... Nxa5 {[%clk 0:01:55.3]} 22. Qb5
{[%clk 0:01:46.9]} 22... Nc4 {[%clk 0:01:51.4]} 23. Bxc4 {[%clk 0:01:43]} 23...
Rxc4 {[%clk 0:01:52.3]} 24. Qxb7 {[%clk 0:01:42.9]} 24... Rc7 {[%clk 0:01:43.2]}
25. Qb5 {[%clk 0:01:32.6]} 25... Rd7 {[%clk 0:01:36.2]} 26. Ba5 {[%clk 0:01:20]}
26... Qe7 {[%clk 0:01:31.7]} 27. Rfd1 {[%clk 0:01:12.6]} 27... e4 {[%clk
0:01:28.7]} 28. g5 {[%clk 0:01:11.5]} 28... exf3 {[%clk 0:01:06.9]} 29. gxf6
{[%clk 0:01:10.9]} 29... Qxe3+ {[%clk 0:01:07.4]} 30. Kh1 {[%clk 0:01:11.1]}
30... f2 {[%clk 0:00:49.3]} 31. Qf1 {[%clk 0:01:05.5]} 31... gxf6 {[%clk
0:00:44.9]} 32. Qg2 {[%clk 0:00:57.6]} 32... Qe1+ {[%clk 0:00:42.2]} 33. Qf1
{[%clk 0:00:53.7]} 33... Qe4+ {[%clk 0:00:40.7]} 34. Qg2 {[%clk 0:00:53.4]}
34... Qf4 {[%clk 0:00:36.3]} 35. Rf1 {[%clk 0:00:47.2]} 35... Re2 {[%clk
0:00:34.1]} 36. c4 {[%clk 0:00:29.4]} 36... dxc4 {[%clk 0:00:31.8]} 37. Bc3
{[%clk 0:00:29.5]} 37... Rd3 {[%clk 0:00:26]} 38. Bb4 {[%clk 0:00:16.6]} 38...
Kg7 {[%clk 0:00:25.3]} 39. Bc3 {[%clk 0:00:15.5]} 39... Rf3 {[%clk 0:00:21.5]}
40. Bb4 {[%clk 0:00:13.4]} 40... Qf5 {[%clk 0:00:18.4]} 41. Bc3 {[%clk
0:00:13.5]} 41... a5 {[%clk 0:00:18.2]} 42. Bxa5 {[%clk 0:00:12.7]} 42... Rf4
{[%clk 0:00:14]} 43. Bc3 {[%clk 0:00:12.2]} 43... Rg4 {[%clk 0:00:14.1]} 44. Qc6
{[%clk 0:00:06]} 44... Ree4 {[%clk 0:00:13]} 45. Bxf6+ {[%clk 0:00:04.1]} 45...
Qxf6 {[%clk 0:00:12.5]} 46. Qxf6+ {[%clk 0:00:03.8]} 46... Kxf6 {[%clk
0:00:13.4]} 47. h3 {[%clk 0:00:04.1]} 47... Rgf4 {[%clk 0:00:12.8]} 48. Kg2
{[%clk 0:00:04.5]} 48... Re2 {[%clk 0:00:12.3]} 49. Rc3 {[%clk 0:00:04.7]} 49...
Kg5 {[%clk 0:00:11.5]} 50. Rg3+ {[%clk 0:00:04.2]} 50... Kh6 {[%clk 0:00:11.6]}
51. Rc3 {[%clk 0:00:03.7]} 51... f5 {[%clk 0:00:11.7]} 52. Rg3 {[%clk
0:00:03.6]} 52... g5 {[%clk 0:00:11.8]} 53. Rc3 {[%clk 0:00:03.4]} 53... Kh5
{[%clk 0:00:12.1]} 54. Ra3 {[%clk 0:00:03.3]} 54... g4 {[%clk 0:00:10.6]} 55.
hxg4+ {[%clk 0:00:03.6]} 55... fxg4 {[%clk 0:00:10.8]} 56. Rh1+ {[%clk
0:00:03.7]} 56... Kg5 {[%clk 0:00:10.4]} 57. Ra5+ {[%clk 0:00:04.2]} 57... Rf5
{[%clk 0:00:10.5]} 58. Ra3 {[%clk 0:00:02.9]} 58... Re1 {[%clk 0:00:10.2]} 59.
Rf1 {[%clk 0:00:03.4]} 59... Rxf1 {[%clk 0:00:10]} 60. Kxf1 {[%clk 0:00:04.3]}
60... Rf4 {[%clk 0:00:09.1]} 61. Rc3 {[%clk 0:00:04.5]} 61... Kh4 {[%clk
0:00:09.1]} 62. Kg2 {[%clk 0:00:05.4]} 62... f1=Q+ {[%clk 0:00:08.7]} 63. Kh2
{[%clk 0:00:04.7]} 63... Rf2# {[%clk 0:00:09.6]} 0-1

[Event "Late-Titled-Tuesday-Blitz-October-03-2023"]
[Site "Chess.com"]
[Date "2023.10.03"]
[Round "1"]
[White "akretchetov"]
[Black "Firouzja2003"]
[Result "0-1"]
[WhiteElo "2511"]
[BlackElo "3129"]
[TimeControl "180+1"]
[EndTime "14:08:18 PDT"]
[Termination "Firouzja2003 won on time"]

1. Nf3 {[%clk 0:02:58.1]} 1... Nf6 {[%clk 0:02:57.9]} 2. c4 {[%clk 0:02:57.8]}
2... g6 {[%clk 0:02:58.7]} 3. Nc3 {[%clk 0:02:57.8]} 3... Bg7 {[%clk 0:02:59.3]}
4. e4 {[%clk 0:02:57.6]} 4... d6 {[%clk 0:02:59.9]} 5. d4 {[%clk 0:02:57.9]}
5... O-O {[%clk 0:03:00.1]} 6. Be2 {[%clk 0:02:57.4]} 6... e5 {[%clk 0:03:00.4]}
7. d5 {[%clk 0:02:57.6]} 7... a5 {[%clk 0:02:59.8]} 8. Bg5 {[%clk 0:02:57.4]}
8... h6 {[%clk 0:02:59.7]} 9. Bh4 {[%clk 0:02:57.7]} 9... Na6 {[%clk 0:02:59.3]}
10. Nd2 {[%clk 0:02:57.6]} 10... Qe8 {[%clk 0:02:58.5]} 11. a3 {[%clk
0:02:56.8]} 11... Bd7 {[%clk 0:02:57.5]} 12. b3 {[%clk 0:02:57.1]} 12... Nh7
{[%clk 0:02:57.3]} 13. Qc2 {[%clk 0:02:53.7]} 13... f5 {[%clk 0:02:56.1]} 14. f3
{[%clk 0:02:52]} 14... h5 {[%clk 0:02:53.2]} 15. Rb1 {[%clk 0:02:49.5]} 15...
Bh6 {[%clk 0:02:52.6]} 16. Bf2 {[%clk 0:02:48.4]} 16... Qe7 {[%clk 0:02:38.5]}
17. b4 {[%clk 0:02:38.2]} 17... axb4 {[%clk 0:02:37.3]} 18. axb4 {[%clk
0:02:38.2]} 18... Qg5 {[%clk 0:01:59.1]} 19. h4 {[%clk 0:02:30.7]} 19... Qe7
{[%clk 0:01:51.8]} 20. Nd1 {[%clk 0:02:19.2]} 20... Nf6 {[%clk 0:01:47.4]} 21.
Ne3 {[%clk 0:02:02.1]} 21... fxe4 {[%clk 0:01:26.5]} 22. Nxe4 {[%clk 0:01:57.4]}
22... Nxe4 {[%clk 0:01:23.3]} 23. Qxe4 {[%clk 0:01:48.7]} 23... Qf7 {[%clk
0:01:22.9]} 24. Qc2 {[%clk 0:01:39.8]} 24... e4 {[%clk 0:01:15.2]} 25. O-O
{[%clk 0:01:34.6]} 25... exf3 {[%clk 0:00:51.8]} 26. Bxf3 {[%clk 0:01:34.5]}
26... Kh7 {[%clk 0:00:52.4]} 27. Qc3 {[%clk 0:01:24.5]} 27... Rae8 {[%clk
0:00:46.3]} 28. Rbe1 {[%clk 0:01:22.1]} 28... Qg7 {[%clk 0:00:45.6]} 29. Qa3
{[%clk 0:01:14.2]} 29... Re5 {[%clk 0:00:35.4]} 30. c5 {[%clk 0:01:08.1]} 30...
Bb5 {[%clk 0:00:35.5]} 31. c6 {[%clk 0:00:57.6]} 31... b6 {[%clk 0:00:29.1]} 32.
Nc2 {[%clk 0:00:48.4]} 32... Bxf1 {[%clk 0:00:28]} 33. Rxf1 {[%clk 0:00:48.6]}
33... Nb8 {[%clk 0:00:24.1]} 34. Nd4 {[%clk 0:00:44.6]} 34... Qe7 {[%clk
0:00:24.5]} 35. Qb3 {[%clk 0:00:29.4]} 35... Be3 {[%clk 0:00:22]} 36. Ne6 {[%clk
0:00:28]} 36... Bxf2+ {[%clk 0:00:22.2]} 37. Rxf2 {[%clk 0:00:28]} 37... Re8
{[%clk 0:00:17.6]} 38. b5 {[%clk 0:00:17.5]} 38... Re1+ {[%clk 0:00:17.4]} 39.
Rf1 {[%clk 0:00:15.4]} 39... Qxh4 {[%clk 0:00:17.5]} 40. Qc3 {[%clk 0:00:10.5]}
40... Rxf1+ {[%clk 0:00:14.5]} 41. Kxf1 {[%clk 0:00:10.9]} 41... Qe7 {[%clk
0:00:14.8]} 42. Kf2 {[%clk 0:00:10.9]} 42... Kg8 {[%clk 0:00:14]} 43. Be4 {[%clk
0:00:11]} 43... Qf7+ {[%clk 0:00:13.8]} 44. Kg1 {[%clk 0:00:11.3]} 44... Re7
{[%clk 0:00:07.7]} 45. Qd3 {[%clk 0:00:10.7]} 45... Qf6 {[%clk 0:00:04.3]} 46.
Bxg6 {[%clk 0:00:09.8]} 46... Qa1+ {[%clk 0:00:05]} 47. Kh2 {[%clk 0:00:09.6]}
47... Qe5+ {[%clk 0:00:04.6]} 48. Kg1 {[%clk 0:00:10.1]} 48... Qa1+ {[%clk
0:00:02.8]} 49. Kh2 {[%clk 0:00:10.6]} 49... Qf6 {[%clk 0:00:02.9]} 50. Bxh5
{[%clk 0:00:09.3]} 50... Rh7 {[%clk 0:00:02.3]} 51. g4 {[%clk 0:00:09]} 51...
Qe5+ {[%clk 0:00:02.3]} 52. Kg2 {[%clk 0:00:09.2]} 52... Rh6 {[%clk 0:00:03.1]}
53. Qf3 {[%clk 0:00:07.5]} 53... Rf6 {[%clk 0:00:03.5]} 54. Qd3 {[%clk
0:00:04.6]} 54... Qe1 {[%clk 0:00:03.4]} 0-1

[Event "Late-Titled-Tuesday-Blitz-October-03-2023"]
[Site "Chess.com"]
[Date "2023.10.03"]
[Round "1"]
[White "Rud_Makarian"]
[Black "scandalgod"]
[Result "1-0"]
[WhiteElo "2958"]
[BlackElo "2490"]
[TimeControl "180+1"]
[EndTime "14:08:18 PDT"]
[Termination "Rud_Makarian won on time"]

1. d4 {[%clk 0:02:58]} 1... d5 {[%clk 0:02:59]} 2. c4 {[%clk 0:02:58.3]} 2... c6
{[%clk 0:02:59.5]} 3. Nf3 {[%clk 0:02:59.2]} 3... Nf6 {[%clk 0:02:59.7]} 4. Qc2
{[%clk 0:02:58.8]} 4... dxc4 {[%clk 0:02:56.9]} 5. Qxc4 {[%clk 0:02:59.5]} 5...
Bf5 {[%clk 0:02:57.1]} 6. g3 {[%clk 0:02:59]} 6... e6 {[%clk 0:02:56.8]} 7. Bg2
{[%clk 0:02:59.2]} 7... Nbd7 {[%clk 0:02:55.5]} 8. O-O {[%clk 0:02:59.4]} 8...
Be7 {[%clk 0:02:54.1]} 9. Rd1 {[%clk 0:02:59.2]} 9... O-O {[%clk 0:02:52.9]} 10.
e3 {[%clk 0:02:59.4]} 10... h6 {[%clk 0:02:52.1]} 11. Nc3 {[%clk 0:02:57.4]}
11... Rc8 {[%clk 0:02:51.7]} 12. Qe2 {[%clk 0:02:57.2]} 12... Ne4 {[%clk
0:02:03.9]} 13. Ne1 {[%clk 0:02:55.5]} 13... Nxc3 {[%clk 0:01:57.8]} 14. bxc3
{[%clk 0:02:56.2]} 14... Bg6 {[%clk 0:01:58.3]} 15. Nd3 {[%clk 0:02:52.9]} 15...
Qa5 {[%clk 0:01:54.7]} 16. Bd2 {[%clk 0:02:48.8]} 16... Qa6 {[%clk 0:01:51.9]}
17. Bf1 {[%clk 0:02:40.9]} 17... c5 {[%clk 0:01:47.6]} 18. Nf4 {[%clk
0:02:40.7]} 18... Qxe2 {[%clk 0:01:42.9]} 19. Bxe2 {[%clk 0:02:41.3]} 19... Bh7
{[%clk 0:01:39.7]} 20. Bf3 {[%clk 0:02:37.5]} 20... b6 {[%clk 0:01:37.1]} 21. a4
{[%clk 0:02:23.5]} 21... Rfd8 {[%clk 0:01:27.7]} 22. a5 {[%clk 0:02:21.9]} 22...
b5 {[%clk 0:01:21.7]} 23. a6 {[%clk 0:02:22]} 23... Nb6 {[%clk 0:01:14.6]} 24.
Bb7 {[%clk 0:02:22]} 24... Rc7 {[%clk 0:01:09.6]} 25. e4 {[%clk 0:02:14.4]}
25... Nc4 {[%clk 0:01:04.5]} 26. d5 {[%clk 0:02:11.3]} 26... Bxe4 {[%clk
0:00:59]} 27. Be1 {[%clk 0:01:24]} 27... g5 {[%clk 0:00:45.4]} 28. dxe6 {[%clk
0:01:16.8]} 28... Rxd1 {[%clk 0:00:44]} 29. Rxd1 {[%clk 0:01:17.5]} 29... Bxb7
{[%clk 0:00:42.1]} 30. axb7 {[%clk 0:01:16.3]} 30... Rxb7 {[%clk 0:00:40.2]} 31.
exf7+ {[%clk 0:01:15.5]} 31... Kxf7 {[%clk 0:00:40]} 32. Nd5 {[%clk 0:01:16.3]}
32... a5 {[%clk 0:00:37.1]} 33. Ra1 {[%clk 0:01:12.1]} 33... b4 {[%clk
0:00:34.5]} 34. cxb4 {[%clk 0:01:09.6]} 34... cxb4 {[%clk 0:00:33.6]} 35. f4
{[%clk 0:01:07]} 35... b3 {[%clk 0:00:23.7]} 36. Bc3 {[%clk 0:01:06.6]} 36... b2
{[%clk 0:00:22.4]} 37. Bxb2 {[%clk 0:01:06.6]} 37... Rxb2 {[%clk 0:00:20.6]} 38.
Rc1 {[%clk 0:01:07.1]} 38... Nd2 {[%clk 0:00:18.8]} 39. Rc7 {[%clk 0:01:05.7]}
39... Nf3+ {[%clk 0:00:18.8]} 40. Kf1 {[%clk 0:01:06.2]} 40... Nxh2+ {[%clk
0:00:18.6]} 41. Ke1 {[%clk 0:01:06.5]} 41... Nf3+ {[%clk 0:00:18.6]} 42. Kf1
{[%clk 0:01:07]} 42... Nd2+ {[%clk 0:00:16.6]} 43. Ke2 {[%clk 0:00:58.7]} 43...
gxf4 {[%clk 0:00:14.7]} 44. Rxe7+ {[%clk 0:00:57.9]} 44... Kf8 {[%clk
0:00:14.9]} 45. gxf4 {[%clk 0:00:56.3]} 45... a4 {[%clk 0:00:15.2]} 46. Ra7
{[%clk 0:00:54.1]} 46... a3 {[%clk 0:00:15.2]} 47. Kd3 {[%clk 0:00:47.4]} 47...
a2 {[%clk 0:00:13]} 48. Nc3 {[%clk 0:00:47.4]} 48... Nf3 {[%clk 0:00:03.9]} 49.
Nxa2 {[%clk 0:00:45.9]} 49... Nh4 {[%clk 0:00:03.5]} 50. Nc3 {[%clk 0:00:45.4]}
50... Rf2 {[%clk 0:00:03.1]} 51. Ke4 {[%clk 0:00:44.7]} 51... Ng2 {[%clk
0:00:03]} 52. Nd5 {[%clk 0:00:44.2]} 52... Re2+ {[%clk 0:00:03.1]} 53. Kf5
{[%clk 0:00:35.9]} 53... Ne3+ {[%clk 0:00:03.2]} 54. Nxe3 {[%clk 0:00:35.9]}
54... Rxe3 {[%clk 0:00:04.1]} 55. Kf6 {[%clk 0:00:36.7]} 55... Kg8 {[%clk
0:00:03.8]} 56. f5 {[%clk 0:00:36.2]} 56... Re1 {[%clk 0:00:03]} 57. Rg7+ {[%clk
0:00:34.9]} 57... Kh8 {[%clk 0:00:03]} 58. Rg6 {[%clk 0:00:33.3]} 58... Kh7
{[%clk 0:00:02.6]} 59. Rg7+ {[%clk 0:00:33.1]} 59... Kh8 {[%clk 0:00:03.1]} 60.
Ra7 {[%clk 0:00:32.5]} 60... Rg1 {[%clk 0:00:01.5]} 61. Ra8+ {[%clk 0:00:29.9]}
61... Kh7 {[%clk 0:00:01.6]} 62. Kf7 {[%clk 0:00:28.6]} 62... h5 {[%clk
0:00:01.6]} 63. f6 {[%clk 0:00:28.4]} 63... Rf1 {[%clk 0:00:02]} 64. Ke6 {[%clk
0:00:18.5]} 64... Re1+ {[%clk 0:00:01.9]} 65. Kd6 {[%clk 0:00:18.1]} 65... Kg6
{[%clk 0:00:01.4]} 66. Rf8 {[%clk 0:00:17.8]} 1-0

[Event "Late-Titled-Tuesday-Blitz-October-03-2023"]
[Site "Chess.com"]
[Date "2023.10.03"]
[Round "1"]
[White "emeli_chess"]
[Black "jk13"]
[Result "0-1"]
[WhiteElo "2358"]
[BlackElo "2661"]
[TimeControl "180+1"]
[EndTime "14:08:22 PDT"]
[Termination "jk13 won by resignation"]

1. d4 {[%clk 0:03:00]} 1... d5 {[%clk 0:02:59.9]} 2. c4 {[%clk 0:02:59.5]} 2...
c6 {[%clk 0:02:59.6]} 3. Nc3 {[%clk 0:02:58.9]} 3... Nf6 {[%clk 0:02:59.5]} 4.
e3 {[%clk 0:02:58.8]} 4... e6 {[%clk 0:02:59.1]} 5. Nf3 {[%clk 0:02:58.9]} 5...
Nbd7 {[%clk 0:02:57.7]} 6. Bd3 {[%clk 0:02:58.7]} 6... dxc4 {[%clk 0:02:57.2]}
7. Bxc4 {[%clk 0:02:59.3]} 7... b5 {[%clk 0:02:58.1]} 8. Bd3 {[%clk 0:02:59.2]}
8... Bd6 {[%clk 0:02:57.8]} 9. O-O {[%clk 0:02:54.4]} 9... Bb7 {[%clk
0:02:57.5]} 10. e4 {[%clk 0:02:53.4]} 10... e5 {[%clk 0:02:56.8]} 11. Bg5 {[%clk
0:02:51.9]} 11... h6 {[%clk 0:02:54.5]} 12. Bh4 {[%clk 0:02:48.8]} 12... O-O
{[%clk 0:02:54.1]} 13. d5 {[%clk 0:02:46.5]} 13... cxd5 {[%clk 0:02:53.4]} 14.
Nxd5 {[%clk 0:02:39.7]} 14... a6 {[%clk 0:02:43.4]} 15. a4 {[%clk 0:02:21.5]}
15... Re8 {[%clk 0:02:37.2]} 16. axb5 {[%clk 0:02:18.2]} 16... Bxd5 {[%clk
0:02:35.7]} 17. exd5 {[%clk 0:02:12.3]} 17... e4 {[%clk 0:02:35.1]} 18. bxa6
{[%clk 0:02:07.1]} 18... exd3 {[%clk 0:02:31.2]} 19. Qxd3 {[%clk 0:02:05.1]}
19... Qb6 {[%clk 0:02:29.3]} 20. Ra2 {[%clk 0:01:47.6]} 20... Nc5 {[%clk
0:02:19.2]} 21. Qf5 {[%clk 0:01:42]} 21... Nfe4 {[%clk 0:02:15.6]} 22. a7 {[%clk
0:01:24.7]} 22... Rxa7 {[%clk 0:02:10.3]} 23. Rxa7 {[%clk 0:01:24]} 23... Qxa7
{[%clk 0:02:11.2]} 24. b4 {[%clk 0:01:22.3]} 24... Nd3 {[%clk 0:02:08.3]} 25. b5
{[%clk 0:01:12.9]} 25... g5 {[%clk 0:02:07]} 26. Bxg5 {[%clk 0:01:07.1]} 26...
hxg5 {[%clk 0:01:56.4]} 27. Nxg5 {[%clk 0:01:05.6]} 27... Nxg5 {[%clk
0:01:51.3]} 28. Qxg5+ {[%clk 0:01:05]} 28... Kf8 {[%clk 0:01:42.1]} 29. Qh6+
{[%clk 0:00:55.9]} 29... Ke7 {[%clk 0:01:40.5]} 30. Qh4+ {[%clk 0:00:34.9]}
30... Kd7 {[%clk 0:01:31]} 31. Qh3+ {[%clk 0:00:34]} 31... Kd8 {[%clk
0:01:31.5]} 32. Qxd3 {[%clk 0:00:34]} 32... Qc5 {[%clk 0:01:23.5]} 33. g3 {[%clk
0:00:32.6]} 33... Re5 {[%clk 0:01:18.4]} 34. Rd1 {[%clk 0:00:29.5]} 34... Bc7
{[%clk 0:01:12]} 35. Kg2 {[%clk 0:00:28.4]} 35... Bb6 {[%clk 0:01:12.2]} 36. Rd2
{[%clk 0:00:28.4]} 36... Qd6 {[%clk 0:01:03.9]} 37. Qc4 {[%clk 0:00:25]} 37...
Bc5 {[%clk 0:00:47.5]} 38. h4 {[%clk 0:00:20.4]} 38... Ke7 {[%clk 0:00:41.1]}
39. Qf4 {[%clk 0:00:18.7]} 39... Kf8 {[%clk 0:00:34.3]} 40. h5 {[%clk
0:00:14.7]} 40... Rxh5 {[%clk 0:00:31.3]} 41. Qxd6+ {[%clk 0:00:14.4]} 41...
Bxd6 {[%clk 0:00:32.2]} 42. b6 {[%clk 0:00:14.6]} 42... Ke7 {[%clk 0:00:30.1]}
43. Rc2 {[%clk 0:00:13.2]} 43... Rxd5 {[%clk 0:00:29.1]} 44. Rc8 {[%clk
0:00:12.1]} 44... Rb5 {[%clk 0:00:28.5]} 45. Rc6 {[%clk 0:00:12.1]} 45... Kd7
{[%clk 0:00:28]} 46. Rc4 {[%clk 0:00:12.3]} 46... Rxb6 {[%clk 0:00:28.2]} 47. f4
{[%clk 0:00:12.4]} 47... Rb3 {[%clk 0:00:27.9]} 48. Kh3 {[%clk 0:00:12]} 48...
Ke6 {[%clk 0:00:27.4]} 49. Kg4 {[%clk 0:00:12.2]} 49... f5+ {[%clk 0:00:26.4]}
50. Kh3 {[%clk 0:00:11.8]} 50... Kd5 {[%clk 0:00:25.8]} 51. Ra4 {[%clk
0:00:12.5]} 51... Bc5 {[%clk 0:00:23]} 52. Kh4 {[%clk 0:00:11.6]} 52... Bf2
{[%clk 0:00:21.8]} 53. Kg5 {[%clk 0:00:10.4]} 53... Bxg3 {[%clk 0:00:19.2]} 54.
Kxf5 {[%clk 0:00:10.6]} 54... Bf2 {[%clk 0:00:17.2]} 55. Kf6 {[%clk 0:00:09.9]}
55... Bd4+ {[%clk 0:00:16.9]} 56. Kg6 {[%clk 0:00:09.3]} 56... Rb6+ {[%clk
0:00:16.7]} 57. Kf5 {[%clk 0:00:08.9]} 57... Rf6+ {[%clk 0:00:16.7]} 58. Kg5
{[%clk 0:00:09.3]} 58... Rf8 {[%clk 0:00:16.2]} 59. f5 {[%clk 0:00:09.7]} 59...
Ke4 {[%clk 0:00:15]} 60. f6 {[%clk 0:00:08.2]} 60... Ke5 {[%clk 0:00:14.9]} 61.
Ra5+ {[%clk 0:00:06]} 61... Ke6 {[%clk 0:00:14.5]} 62. Ra6+ {[%clk 0:00:06.1]}
62... Kf7 {[%clk 0:00:14.8]} 63. Rd6 {[%clk 0:00:06.1]} 63... Be5 {[%clk
0:00:13.7]} 64. Rd7+ {[%clk 0:00:06.2]} 64... Ke6 {[%clk 0:00:14.3]} 65. Re7+
{[%clk 0:00:06.4]} 65... Kd6 {[%clk 0:00:15]} 66. Rg7 {[%clk 0:00:03.4]} 66...
Bxf6+ {[%clk 0:00:15.3]} 67. Kg6 {[%clk 0:00:03.9]} 67... Bxg7 {[%clk
0:00:16.2]} 68. Kxg7 {[%clk 0:00:04.8]} 68... Rf5 {[%clk 0:00:16]} 0-1